Workbook

Sheet Báo cáo Tài chính
B2: BÁO CÁO TÀI CHÍNH HÀNG NĂM | K2: 2016 | N2: Chọn năm báo cáo trong Ô L2
B3: TÊN CÔNG TY CỦA BẠN | N3: Để chỉnh sửa dữ liệu, hãy chọn trang tính Đầu vào Dữ liệu Tài chính
B5: CHỈ SỐ CHÍNH | D5: Bấm vào để thay đổi Chỉ số Chính được báo cáo
B7: ='Tính toán'!B8 -> DOANH THU | D7: ='Tính toán'!B9 -> LỢI NHUẬN RÒNG | F7: ='Tính toán'!B10 -> LÃI SUẤT | H7: ='Tính toán'!B11 -> KHẤU HAO | J7: ='Tính toán'!B12 -> LỢI NHUẬN TỪ HOẠT ĐỘNG SXKD
B8: =IFERROR('Tính toán'!G8,"") -> 5,056,348,640 ₫ | D8: =IFERROR('Tính toán'!G9,"") -> 1,889,295,800 ₫ | F8: =IFERROR('Tính toán'!G10,"") -> 106,105,160 ₫ | H8: =IFERROR('Tính toán'!G11,"") -> 155,312,640 ₫ | J8: =IFERROR('Tính toán'!G12,"") -> 2,055,927,720 ₫
B9: ='Tính toán'!H8 -> 0% | D9: ='Tính toán'!H9 -> 2% | F9: ='Tính toán'!H10 -> 14% | H9: ='Tính toán'!H11 -> 9% | J9: ='Tính toán'!H12 -> -5%
B13: TẤT CẢ CHỈ SỐ | D13: Không sửa đổi thông tin dưới đây. Bấm vào để nhập Dữ liệu Tài chính
B15: SỐ LIỆU | D15: ="NĂM BÁO CÁO ("&SelectedYear&")" -> NĂM BÁO CÁO (2016) | F15: ="NĂM TRƯỚC ("&SelectedYear-1&")" -> NĂM TRƯỚC (2015) | H15: % THAY ĐỔI | I15: =CONCATENATE("XU HƯỚNG", Năm," NĂM") -> XU HƯỚNG5 NĂM
B16: ='Tính toán'!B15 -> DOANH THU | D16: =IF($B16="","",'Tính toán'!G15) -> 5,056,348,640.00 ₫ | F16: =IF($B16="","",'Tính toán'!F15) -> 5,040,745,640.00 ₫ | H16: =IFERROR(D16/F16-1,"") -> 0%
B17: ='Tính toán'!B16 -> CHI PHÍ HOẠT ĐỘNG | D17: =IF($B17="","",'Tính toán'!G16) -> 2,643,744,600.00 ₫ | F17: =IF($B17="","",'Tính toán'!F16) -> 2,264,733,240.00 ₫ | H17: 17%
B18: ='Tính toán'!B17 -> LỢI NHUẬN TỪ HOẠT ĐỘNG SXKD | D18: =IF($B18="","",'Tính toán'!G17) -> 2,055,927,720.00 ₫ | F18: =IF($B18="","",'Tính toán'!F17) -> 2,164,899,240.00 ₫ | H18: -5%
B19: ='Tính toán'!B18 -> KHẤU HAO | D19: =IF($B19="","",'Tính toán'!G18) -> 155,312,640.00 ₫ | F19: =IF($B19="","",'Tính toán'!F18) -> 141,915,760.00 ₫ | H19: 9%
B20: ='Tính toán'!B19 -> LÃI SUẤT | D20: =IF($B20="","",'Tính toán'!G19) -> 106,105,160.00 ₫ | F20: =IF($B20="","",'Tính toán'!F19) -> 93,472,400.00 ₫ | H20: 14%
B21: ='Tính toán'!B20 -> LỢI NHUẬN RÒNG | D21: =IF($B21="","",'Tính toán'!G20) -> 1,889,295,800.00 ₫ | F21: =IF($B21="","",'Tính toán'!F20) -> 1,855,618,800.00 ₫ | H21: 2%
B22: ='Tính toán'!B21 -> THUẾ | D22: =IF($B22="","",'Tính toán'!G21) -> 879,431,000.00 ₫ | F22: =IF($B22="","",'Tính toán'!F21) -> 823,886,840.00 ₫ | H22: 7%
B23: ='Tính toán'!B22 -> LỢI NHUẬN SAU THUẾ | D23: =IF($B23="","",'Tính toán'!G22) -> 1,406,935,040.00 ₫ | F23: =IF($B23="","",'Tính toán'!F22) -> 1,188,269,600.00 ₫ | H23: 18%
B24: ='Tính toán'!B23 -> CHỈ SỐ 1 | D24: =IF($B24="","",'Tính toán'!G23) -> 558,880.00 ₫ | F24: =IF($B24="","",'Tính toán'!F23) -> 469,840.00 ₫ | H24: 19%
B25: ='Tính toán'!B24 -> CHỈ SỐ 2 | D25: =IF($B25="","",'Tính toán'!G24) -> 728,280.00 ₫ | F25: =IF($B25="","",'Tính toán'!F24) -> 611,520.00 ₫ | H25: 19%
B26: ='Tính toán'!B25 -> CHỈ SỐ 3 | D26: =IF($B26="","",'Tính toán'!G25) -> 870,240.00 ₫ | F26: =IF($B26="","",'Tính toán'!F25) -> 738,920.00 ₫ | H26: 18%
B27: ='Tính toán'!B26 -> CHỈ SỐ 4 | D27: =IF($B27="","",'Tính toán'!G26) -> 417,760.00 ₫ | F27: =IF($B27="","",'Tính toán'!F26) -> 408,520.00 ₫ | H27: 2%
B28: ='Tính toán'!B27 -> CHỈ SỐ 5 | D28: =IF($B28="","",'Tính toán'!G27) -> 28,840.00 ₫ | F28: =IF($B28="","",'Tính toán'!F27) -> 28,000.00 ₫ | H28: 3%
B29: ='Tính toán'!B28 -> CHỈ SỐ 6 | D29: =IF($B29="","",'Tính toán'!G28) -> 9,520.00 ₫ | F29: =IF($B29="","",'Tính toán'!F28) -> 8,400.00 ₫ | H29: 13%
B30: ='Tính toán'!B29 ->  | D30: =IF($B30="","",'Tính toán'!G29) ->  | F30: =IF($B30="","",'Tính toán'!F29) -> 
B31: ='Tính toán'!B30 ->  | D31: =IF($B31="","",'Tính toán'!G30) ->  | F31: =IF($B31="","",'Tính toán'!F30) -> 
B32: ='Tính toán'!B31 ->  | D32: =IF($B32="","",'Tính toán'!G31) ->  | F32: =IF($B32="","",'Tính toán'!F31) -> 
B33: ='Tính toán'!B32 ->  | D33: =IF($B33="","",'Tính toán'!G32) ->  | F33: =IF($B33="","",'Tính toán'!F32) -> 
B34: ='Tính toán'!B33 ->  | D34: =IF($B34="","",'Tính toán'!G33) ->  | F34: =IF($B34="","",'Tính toán'!F33) -> 
B35: ='Tính toán'!B34 ->  | D35: =IF($B35="","",'Tính toán'!G34) ->  | F35: =IF($B35="","",'Tính toán'!F34) -> 
B36: ='Tính toán'!B35 ->  | D36: =IF($B36="","",'Tính toán'!G35) ->  | F36: =IF($B36="","",'Tính toán'!F35) -> 
B37: ='Tính toán'!B36 ->  | D37: =IF($B37="","",'Tính toán'!G36) ->  | F37: =IF($B37="","",'Tính toán'!F36) -> 
B38: ='Tính toán'!B37 ->  | D38: =IF($B38="","",'Tính toán'!G37) ->  | F38: =IF($B38="","",'Tính toán'!F37) -> 
B39: ='Tính toán'!B38 ->  | D39: =IF($B39="","",'Tính toán'!G38) ->  | F39: =IF($B39="","",'Tính toán'!F38) -> 
B40: ='Tính toán'!B39 ->  | D40: =IF($B40="","",'Tính toán'!G39) ->  | F40: =IF($B40="","",'Tính toán'!F39) -> 

Sheet Đầu vào Dữ liệu Tài chính
B2: NHẬP DỮ LIỆU TÀI CHÍNH CỦA BẠN
B3: BẠN CÓ THỂ XÁC ĐỊNH TỐI ĐA 25 CHỈ SỐ CHÍNH CHO 7 NĂM
B4: Bấm vào để xem Báo cáo Tài chính
B5: TÊN CHỈ SỐ | C5: 2010 | D5: 2011 | E5: 2012 | F5: 2013 | G5: 2014 | H5: 2015 | I5: 2016
B6: DOANH THU | C6: 3,500,000,000.00 ₫ | D6: 3,755,848,600.00 ₫ | E6: 3,996,394,640.00 ₫ | F6: 4,219,248,880.00 ₫ | G6: 4,621,247,680.00 ₫ | H6: 5,040,745,640.00 ₫ | I6: 5,056,348,640.00 ₫
B7: CHI PHÍ HOẠT ĐỘNG | C7: 1,820,000,000.00 ₫ | D7: 1,986,944,680.00 ₫ | E7: 2,125,896,080.00 ₫ | F7: 2,209,235,560.00 ₫ | G7: 2,286,882,360.00 ₫ | H7: 2,264,733,240.00 ₫ | I7: 2,643,744,600.00 ₫
B8: LỢI NHUẬN TỪ HOẠT ĐỘNG SXKD | C8: 1,680,000,000.00 ₫ | D8: 1,797,804,400.00 ₫ | E8: 1,928,015,320.00 ₫ | F8: 2,118,011,000.00 ₫ | G8: 2,149,147,280.00 ₫ | H8: 2,164,899,240.00 ₫ | I8: 2,055,927,720.00 ₫
B9: KHẤU HAO | C9: 126,000,000.00 ₫ | D9: 126,497,560.00 ₫ | E9: 130,393,760.00 ₫ | F9: 139,277,880.00 ₫ | G9: 140,675,080.00 ₫ | H9: 141,915,760.00 ₫ | I9: 155,312,640.00 ₫
B10: LÃI SUẤT | C10: 70,000,000.00 ₫ | D10: 76,882,960.00 ₫ | E10: 81,007,080.00 ₫ | F10: 87,811,360.00 ₫ | G10: 88,158,840.00 ₫ | H10: 93,472,400.00 ₫ | I10: 106,105,160.00 ₫
B11: LỢI NHUẬN RÒNG | C11: 1,512,000,000.00 ₫ | D11: 1,533,310,100.00 ₫ | E11: 1,564,102,680.00 ₫ | F11: 1,672,942,600.00 ₫ | G11: 1,721,540,520.00 ₫ | H11: 1,855,618,800.00 ₫ | I11: 1,889,295,800.00 ₫
B12: THUẾ | C12: 616,000,000.00 ₫ | D12: 669,775,120.00 ₫ | E12: 716,148,720.00 ₫ | F12: 769,968,080.00 ₫ | G12: 793,398,760.00 ₫ | H12: 823,886,840.00 ₫ | I12: 879,431,000.00 ₫
B13: LỢI NHUẬN SAU THUẾ | C13: 896,000,000.00 ₫ | D13: 978,417,720.00 ₫ | E13: 1,075,718,840.00 ₫ | F13: 1,117,061,400.00 ₫ | G13: 1,137,016,440.00 ₫ | H13: 1,188,269,600.00 ₫ | I13: 1,406,935,040.00 ₫
B14: CHỈ SỐ 1 | C14: 358,400.00 ₫ | D14: 358,680.00 ₫ | E14: 385,840.00 ₫ | F14: 400,120.00 ₫ | G14: 435,960.00 ₫ | H14: 469,840.00 ₫ | I14: 558,880.00 ₫
B15: CHỈ SỐ 2 | C15: 509,600.00 ₫ | D15: 520,520.00 ₫ | E15: 538,160.00 ₫ | F15: 564,760.00 ₫ | G15: 573,440.00 ₫ | H15: 611,520.00 ₫ | I15: 728,280.00 ₫
B16: CHỈ SỐ 3 | C16: 534,800.00 ₫ | D16: 575,400.00 ₫ | E16: 612,360.00 ₫ | F16: 649,320.00 ₫ | G16: 690,760.00 ₫ | H16: 738,920.00 ₫ | I16: 870,240.00 ₫
B17: CHỈ SỐ 4 | C17: 338,800.00 ₫ | D17: 341,880.00 ₫ | E17: 352,520.00 ₫ | F17: 383,600.00 ₫ | G17: 385,280.00 ₫ | H17: 408,520.00 ₫ | I17: 417,760.00 ₫
B18: CHỈ SỐ 5 | C18: 21,000.00 ₫ | D18: 22,120.00 ₫ | E18: 23,800.00 ₫ | F18: 24,920.00 ₫ | G18: 25,480.00 ₫ | H18: 28,000.00 ₫ | I18: 28,840.00 ₫
B19: CHỈ SỐ 6 | C19: 6,440.00 ₫ | D19: 7,000.00 ₫ | E19: 7,560.00 ₫ | F19: 7,840.00 ₫ | G19: 8,120.00 ₫ | H19: 8,400.00 ₫ | I19: 9,520.00 ₫

Sheet Thiết đặt Chỉ số Chính
B2: XÁC ĐỊNH CÁC CHỈ SỐ CHÍNH TẠI ĐÂY
B3: CHỌN TỐI ĐA 5 CHỈ SỐ CHÍNH ĐỂ HIỂN THỊ TRÊN ĐẦU BÁO CÁO
B4: Bấm vào để xem Báo cáo Tài chính
B5: 1 | C5: DOANH THU | E5: =IF(ISBLANK(C5),"← Please select a value from drop-down",IF(COUNTIF($C$5:C5,C5)>1,"Bạn đã chọn "&C5&" nhiều lần.","")) -> 
B6: 2 | C6: LỢI NHUẬN RÒNG | E6: =IF(ISBLANK(C6),"← Vui lòng chọn giá trị từ danh sách thả xuống",IF(COUNTIF($C$5:C6,C6)>1,"Bạn đã chọn "&C6&" nhiều lần.","")) -> 
B7: 3 | C7: LÃI SUẤT | E7: =IF(ISBLANK(C7),"← Vui lòng chọn giá trị từ danh sách thả xuống",IF(COUNTIF($C$5:C7,C7)>1,"Bạn đã chọn "&C7&" nhiều lần.","")) -> 
B8: 4 | C8: KHẤU HAO | E8: =IF(ISBLANK(C8),"← Vui lòng chọn giá trị từ danh sách thả xuống",IF(COUNTIF($C$5:C8,C8)>1,"Bạn đã chọn "&C8&" nhiều lần.","")) -> 
B9: 5 | C9: LỢI NHUẬN TỪ HOẠT ĐỘNG SXKD | E9: =IF(ISBLANK(C9),"← Vui lòng chọn giá trị từ danh sách thả xuống",IF(COUNTIF($C$5:C9,C9)>1,"Bạn đã chọn "&C9&" nhiều lần.","")) -> 

Sheet Tính toán (hidden)
A1: Trang tính này được sử dụng để tính toán Báo cáo Tài chính và nên giữ ở chế độ ẩn.
D2: Vị trí
B3: Năm nay | C3: =SelectedYear -> 2016 | D3: =MATCH(C3,lstYears,0)+1 -> 8
B4: Năm Trước | C4: =C3-1 -> 2015 | D4: =MATCH(C4,lstYears,0)+1 -> 7
B6: Vị trí | C6: =MATCH(C7,lstYears,0)+1 -> 4 | D6: =MATCH(D7,lstYears,0)+1 -> 5 | E6: =MATCH(E7,lstYears,0)+1 -> 6 | F6: =MATCH(F7,lstYears,0)+1 -> 7 | G6: =MATCH(G7,lstYears,0)+1 -> 8 | I6: =COUNT(C6:G6) -> 5
B7: Chỉ số Chính | C7: =D7-1 -> 2012 | D7: =E7-1 -> 2013 | E7: =F7-1 -> 2014 | F7: =G7-1 -> 2015 | G7: =C3 -> 2016
A8: =MATCH(B8,'Đầu vào Dữ liệu Tài chính'!$B$6:$B$30,0) -> 1 | B8: =IF('Thiết đặt Chỉ số Chính'!C5="","",'Thiết đặt Chỉ số Chính'!C5) -> DOANH THU | C8: =IFERROR(INDEX('Đầu vào Dữ liệu Tài chính'!$B$6:$I$30,$A8,C$6),NEDEF()) -> 3996394640 | D8: =IFERROR(INDEX('Đầu vào Dữ liệu Tài chính'!$B$6:$I$30,$A8,D$6),NEDEF()) -> 4219248880 | E8: =IFERROR(INDEX('Đầu vào Dữ liệu Tài chính'!$B$6:$I$30,$A8,E$6),NEDEF()) -> 4621247680 | F8: =IFERROR(INDEX('Đầu vào Dữ liệu Tài chính'!$B$6:$I$30,$A8,F$6),NEDEF()) -> 5040745640 | G8: =IFERROR(INDEX('Đầu vào Dữ liệu Tài chính'!$B$6:$I$30,$A8,G$6),NEDEF()) -> 5056348640 | H8: =IFERROR(G8/F8-1,"") -> 0%
A9: =MATCH(B9,'Đầu vào Dữ liệu Tài chính'!$B$6:$B$30,0) -> 6 | B9: =IF('Thiết đặt Chỉ số Chính'!C6="","",'Thiết đặt Chỉ số Chính'!C6) -> LỢI NHUẬN RÒNG | C9: =IFERROR(INDEX('Đầu vào Dữ liệu Tài chính'!$B$6:$I$30,$A9,C$6),NEDEF()) -> 1564102680 | D9: =IFERROR(INDEX('Đầu vào Dữ liệu Tài chính'!$B$6:$I$30,$A9,D$6),NEDEF()) -> 1672942600 | E9: =IFERROR(INDEX('Đầu vào Dữ liệu Tài chính'!$B$6:$I$30,$A9,E$6),NEDEF()) -> 1721540520 | F9: =IFERROR(INDEX('Đầu vào Dữ liệu Tài chính'!$B$6:$I$30,$A9,F$6),NEDEF()) -> 1855618800 | G9: =IFERROR(INDEX('Đầu vào Dữ liệu Tài chính'!$B$6:$I$30,$A9,G$6),NEDEF()) -> 1889295800 | H9: =IFERROR(G9/F9-1,"") -> 2%
A10: =MATCH(B10,'Đầu vào Dữ liệu Tài chính'!$B$6:$B$30,0) -> 5 | B10: =IF('Thiết đặt Chỉ số Chính'!C7="","",'Thiết đặt Chỉ số Chính'!C7) -> LÃI SUẤT | C10: =IFERROR(INDEX('Đầu vào Dữ liệu Tài chính'!$B$6:$I$30,$A10,C$6),NEDEF()) -> 81007080 | D10: =IFERROR(INDEX('Đầu vào Dữ liệu Tài chính'!$B$6:$I$30,$A10,D$6),NEDEF()) -> 87811360 | E10: =IFERROR(INDEX('Đầu vào Dữ liệu Tài chính'!$B$6:$I$30,$A10,E$6),NEDEF()) -> 88158840 | F10: =IFERROR(INDEX('Đầu vào Dữ liệu Tài chính'!$B$6:$I$30,$A10,F$6),NEDEF()) -> 93472400 | G10: =IFERROR(INDEX('Đầu vào Dữ liệu Tài chính'!$B$6:$I$30,$A10,G$6),NEDEF()) -> 106105160 | H10: 14%
A11: =MATCH(B11,'Đầu vào Dữ liệu Tài chính'!$B$6:$B$30,0) -> 4 | B11: =IF('Thiết đặt Chỉ số Chính'!C8="","",'Thiết đặt Chỉ số Chính'!C8) -> KHẤU HAO | C11: =IFERROR(INDEX('Đầu vào Dữ liệu Tài chính'!$B$6:$I$30,$A11,C$6),NEDEF()) -> 130393760 | D11: =IFERROR(INDEX('Đầu vào Dữ liệu Tài chính'!$B$6:$I$30,$A11,D$6),NEDEF()) -> 139277880 | E11: =IFERROR(INDEX('Đầu vào Dữ liệu Tài chính'!$B$6:$I$30,$A11,E$6),NEDEF()) -> 140675080 | F11: =IFERROR(INDEX('Đầu vào Dữ liệu Tài chính'!$B$6:$I$30,$A11,F$6),NEDEF()) -> 141915760 | G11: =IFERROR(INDEX('Đầu vào Dữ liệu Tài chính'!$B$6:$I$30,$A11,G$6),NEDEF()) -> 155312640 | H11: 9%
A12: =MATCH(B12,'Đầu vào Dữ liệu Tài chính'!$B$6:$B$30,0) -> 3 | B12: =IF('Thiết đặt Chỉ số Chính'!C9="","",'Thiết đặt Chỉ số Chính'!C9) -> LỢI NHUẬN TỪ HOẠT ĐỘNG SXKD | C12: =IFERROR(INDEX('Đầu vào Dữ liệu Tài chính'!$B$6:$I$30,$A12,C$6),NEDEF()) -> 1928015320 | D12: =IFERROR(INDEX('Đầu vào Dữ liệu Tài chính'!$B$6:$I$30,$A12,D$6),NEDEF()) -> 2118011000 | E12: =IFERROR(INDEX('Đầu vào Dữ liệu Tài chính'!$B$6:$I$30,$A12,E$6),NEDEF()) -> 2149147280 | F12: =IFERROR(INDEX('Đầu vào Dữ liệu Tài chính'!$B$6:$I$30,$A12,F$6),NEDEF()) -> 2164899240 | G12: =IFERROR(INDEX('Đầu vào Dữ liệu Tài chính'!$B$6:$I$30,$A12,G$6),NEDEF()) -> 2055927720 | H12: -5%
B14: Tất cả Chỉ số (hoạt động được với tối đa 25 chỉ số)
A15: =ROWS($B$15:B15) -> 1 | B15: =IF('Đầu vào Dữ liệu Tài chính'!B6=0,"",'Đầu vào Dữ liệu Tài chính'!B6) -> DOANH THU | C15: =IF(B15="",NA(),IFERROR(INDEX('Đầu vào Dữ liệu Tài chính'!$B$6:$I$30,$A15,C$6),NA())) -> 3996394640 | D15: =IF(B15="",NA(),IFERROR(INDEX('Đầu vào Dữ liệu Tài chính'!$B$6:$I$30,$A15,D$6),NA())) -> 4219248880 | E15: =IF(B15="",NA(),IFERROR(INDEX('Đầu vào Dữ liệu Tài chính'!$B$6:$I$30,$A15,E$6),NA())) -> 4621247680 | F15: =IF(B15="",NA(),IFERROR(INDEX('Đầu vào Dữ liệu Tài chính'!$B$6:$I$30,$A15,F$6),NA())) -> 5040745640 | G15: =IF(B15="",NA(),IFERROR(INDEX('Đầu vào Dữ liệu Tài chính'!$B$6:$I$30,$A15,G$6),NA())) -> 5056348640
A16: =ROWS($B$15:B16) -> 2 | B16: =IF('Đầu vào Dữ liệu Tài chính'!B7=0,"",'Đầu vào Dữ liệu Tài chính'!B7) -> CHI PHÍ HOẠT ĐỘNG | C16: =IF(B16="",NA(),IFERROR(INDEX('Đầu vào Dữ liệu Tài chính'!$B$6:$I$30,$A16,C$6),NA())) -> 2125896080 | D16: =IF(B16="",NA(),IFERROR(INDEX('Đầu vào Dữ liệu Tài chính'!$B$6:$I$30,$A16,D$6),NA())) -> 2209235560 | E16: =IF(B16="",NA(),IFERROR(INDEX('Đầu vào Dữ liệu Tài chính'!$B$6:$I$30,$A16,E$6),NA())) -> 2286882360 | F16: =IF(B16="",NA(),IFERROR(INDEX('Đầu vào Dữ liệu Tài chính'!$B$6:$I$30,$A16,F$6),NA())) -> 2264733240 | G16: =IF(B16="",NA(),IFERROR(INDEX('Đầu vào Dữ liệu Tài chính'!$B$6:$I$30,$A16,G$6),NA())) -> 2643744600
A17: =ROWS($B$15:B17) -> 3 | B17: =IF('Đầu vào Dữ liệu Tài chính'!B8=0,"",'Đầu vào Dữ liệu Tài chính'!B8) -> LỢI NHUẬN TỪ HOẠT ĐỘNG SXKD | C17: =IF(B17="",NA(),IFERROR(INDEX('Đầu vào Dữ liệu Tài chính'!$B$6:$I$30,$A17,C$6),NA())) -> 1928015320 | D17: =IF(B17="",NA(),IFERROR(INDEX('Đầu vào Dữ liệu Tài chính'!$B$6:$I$30,$A17,D$6),NA())) -> 2118011000 | E17: =IF(B17="",NA(),IFERROR(INDEX('Đầu vào Dữ liệu Tài chính'!$B$6:$I$30,$A17,E$6),NA())) -> 2149147280 | F17: =IF(B17="",NA(),IFERROR(INDEX('Đầu vào Dữ liệu Tài chính'!$B$6:$I$30,$A17,F$6),NA())) -> 2164899240 | G17: =IF(B17="",NA(),IFERROR(INDEX('Đầu vào Dữ liệu Tài chính'!$B$6:$I$30,$A17,G$6),NA())) -> 2055927720
A18: =ROWS($B$15:B18) -> 4 | B18: =IF('Đầu vào Dữ liệu Tài chính'!B9=0,"",'Đầu vào Dữ liệu Tài chính'!B9) -> KHẤU HAO | C18: =IF(B18="",NA(),IFERROR(INDEX('Đầu vào Dữ liệu Tài chính'!$B$6:$I$30,$A18,C$6),NA())) -> 130393760 | D18: =IF(B18="",NA(),IFERROR(INDEX('Đầu vào Dữ liệu Tài chính'!$B$6:$I$30,$A18,D$6),NA())) -> 139277880 | E18: =IF(B18="",NA(),IFERROR(INDEX('Đầu vào Dữ liệu Tài chính'!$B$6:$I$30,$A18,E$6),NA())) -> 140675080 | F18: =IF(B18="",NA(),IFERROR(INDEX('Đầu vào Dữ liệu Tài chính'!$B$6:$I$30,$A18,F$6),NA())) -> 141915760 | G18: =IF(B18="",NA(),IFERROR(INDEX('Đầu vào Dữ liệu Tài chính'!$B$6:$I$30,$A18,G$6),NA())) -> 155312640
A19: =ROWS($B$15:B19) -> 5 | B19: =IF('Đầu vào Dữ liệu Tài chính'!B10=0,"",'Đầu vào Dữ liệu Tài chính'!B10) -> LÃI SUẤT | C19: =IF(B19="",NA(),IFERROR(INDEX('Đầu vào Dữ liệu Tài chính'!$B$6:$I$30,$A19,C$6),NA())) -> 81007080 | D19: =IF(B19="",NA(),IFERROR(INDEX('Đầu vào Dữ liệu Tài chính'!$B$6:$I$30,$A19,D$6),NA())) -> 87811360 | E19: =IF(B19="",NA(),IFERROR(INDEX('Đầu vào Dữ liệu Tài chính'!$B$6:$I$30,$A19,E$6),NA())) -> 88158840 | F19: =IF(B19="",NA(),IFERROR(INDEX('Đầu vào Dữ liệu Tài chính'!$B$6:$I$30,$A19,F$6),NA())) -> 93472400 | G19: =IF(B19="",NA(),IFERROR(INDEX('Đầu vào Dữ liệu Tài chính'!$B$6:$I$30,$A19,G$6),NA())) -> 106105160
A20: =ROWS($B$15:B20) -> 6 | B20: =IF('Đầu vào Dữ liệu Tài chính'!B11=0,"",'Đầu vào Dữ liệu Tài chính'!B11) -> LỢI NHUẬN RÒNG | C20: =IF(B20="",NA(),IFERROR(INDEX('Đầu vào Dữ liệu Tài chính'!$B$6:$I$30,$A20,C$6),NA())) -> 1564102680 | D20: =IF(B20="",NA(),IFERROR(INDEX('Đầu vào Dữ liệu Tài chính'!$B$6:$I$30,$A20,D$6),NA())) -> 1672942600 | E20: =IF(B20="",NA(),IFERROR(INDEX('Đầu vào Dữ liệu Tài chính'!$B$6:$I$30,$A20,E$6),NA())) -> 1721540520 | F20: =IF(B20="",NA(),IFERROR(INDEX('Đầu vào Dữ liệu Tài chính'!$B$6:$I$30,$A20,F$6),NA())) -> 1855618800 | G20: =IF(B20="",NA(),IFERROR(INDEX('Đầu vào Dữ liệu Tài chính'!$B$6:$I$30,$A20,G$6),NA())) -> 1889295800
A21: =ROWS($B$15:B21) -> 7 | B21: =IF('Đầu vào Dữ liệu Tài chính'!B12=0,"",'Đầu vào Dữ liệu Tài chính'!B12) -> THUẾ | C21: =IF(B21="",NA(),IFERROR(INDEX('Đầu vào Dữ liệu Tài chính'!$B$6:$I$30,$A21,C$6),NA())) -> 716148720 | D21: =IF(B21="",NA(),IFERROR(INDEX('Đầu vào Dữ liệu Tài chính'!$B$6:$I$30,$A21,D$6),NA())) -> 769968080 | E21: =IF(B21="",NA(),IFERROR(INDEX('Đầu vào Dữ liệu Tài chính'!$B$6:$I$30,$A21,E$6),NA())) -> 793398760 | F21: =IF(B21="",NA(),IFERROR(INDEX('Đầu vào Dữ liệu Tài chính'!$B$6:$I$30,$A21,F$6),NA())) -> 823886840 | G21: =IF(B21="",NA(),IFERROR(INDEX('Đầu vào Dữ liệu Tài chính'!$B$6:$I$30,$A21,G$6),NA())) -> 879431000
A22: =ROWS($B$15:B22) -> 8 | B22: =IF('Đầu vào Dữ liệu Tài chính'!B13=0,"",'Đầu vào Dữ liệu Tài chính'!B13) -> LỢI NHUẬN SAU THUẾ | C22: =IF(B22="",NA(),IFERROR(INDEX('Đầu vào Dữ liệu Tài chính'!$B$6:$I$30,$A22,C$6),NA())) -> 1075718840 | D22: =IF(B22="",NA(),IFERROR(INDEX('Đầu vào Dữ liệu Tài chính'!$B$6:$I$30,$A22,D$6),NA())) -> 1117061400 | E22: =IF(B22="",NA(),IFERROR(INDEX('Đầu vào Dữ liệu Tài chính'!$B$6:$I$30,$A22,E$6),NA())) -> 1137016440 | F22: =IF(B22="",NA(),IFERROR(INDEX('Đầu vào Dữ liệu Tài chính'!$B$6:$I$30,$A22,F$6),NA())) -> 1188269600 | G22: =IF(B22="",NA(),IFERROR(INDEX('Đầu vào Dữ liệu Tài chính'!$B$6:$I$30,$A22,G$6),NA())) -> 1406935040
A23: =ROWS($B$15:B23) -> 9 | B23: =IF('Đầu vào Dữ liệu Tài chính'!B14=0,"",'Đầu vào Dữ liệu Tài chính'!B14) -> CHỈ SỐ 1 | C23: =IF(B23="",NA(),IFERROR(INDEX('Đầu vào Dữ liệu Tài chính'!$B$6:$I$30,$A23,C$6),NA())) -> 385840 | D23: =IF(B23="",NA(),IFERROR(INDEX('Đầu vào Dữ liệu Tài chính'!$B$6:$I$30,$A23,D$6),NA())) -> 400120 | E23: =IF(B23="",NA(),IFERROR(INDEX('Đầu vào Dữ liệu Tài chính'!$B$6:$I$30,$A23,E$6),NA())) -> 435960 | F23: =IF(B23="",NA(),IFERROR(INDEX('Đầu vào Dữ liệu Tài chính'!$B$6:$I$30,$A23,F$6),NA())) -> 469840 | G23: =IF(B23="",NA(),IFERROR(INDEX('Đầu vào Dữ liệu Tài chính'!$B$6:$I$30,$A23,G$6),NA())) -> 558880
A24: =ROWS($B$15:B24) -> 10 | B24: =IF('Đầu vào Dữ liệu Tài chính'!B15=0,"",'Đầu vào Dữ liệu Tài chính'!B15) -> CHỈ SỐ 2 | C24: =IF(B24="",NA(),IFERROR(INDEX('Đầu vào Dữ liệu Tài chính'!$B$6:$I$30,$A24,C$6),NA())) -> 538160 | D24: =IF(B24="",NA(),IFERROR(INDEX('Đầu vào Dữ liệu Tài chính'!$B$6:$I$30,$A24,D$6),NA())) -> 564760 | E24: =IF(B24="",NA(),IFERROR(INDEX('Đầu vào Dữ liệu Tài chính'!$B$6:$I$30,$A24,E$6),NA())) -> 573440 | F24: =IF(B24="",NA(),IFERROR(INDEX('Đầu vào Dữ liệu Tài chính'!$B$6:$I$30,$A24,F$6),NA())) -> 611520 | G24: =IF(B24="",NA(),IFERROR(INDEX('Đầu vào Dữ liệu Tài chính'!$B$6:$I$30,$A24,G$6),NA())) -> 728280
A25: =ROWS($B$15:B25) -> 11 | B25: =IF('Đầu vào Dữ liệu Tài chính'!B16=0,"",'Đầu vào Dữ liệu Tài chính'!B16) -> CHỈ SỐ 3 | C25: =IF(B25="",NA(),IFERROR(INDEX('Đầu vào Dữ liệu Tài chính'!$B$6:$I$30,$A25,C$6),NA())) -> 612360 | D25: =IF(B25="",NA(),IFERROR(INDEX('Đầu vào Dữ liệu Tài chính'!$B$6:$I$30,$A25,D$6),NA())) -> 649320 | E25: =IF(B25="",NA(),IFERROR(INDEX('Đầu vào Dữ liệu Tài chính'!$B$6:$I$30,$A25,E$6),NA())) -> 690760 | F25: =IF(B25="",NA(),IFERROR(INDEX('Đầu vào Dữ liệu Tài chính'!$B$6:$I$30,$A25,F$6),NA())) -> 738920 | G25: =IF(B25="",NA(),IFERROR(INDEX('Đầu vào Dữ liệu Tài chính'!$B$6:$I$30,$A25,G$6),NA())) -> 870240
A26: =ROWS($B$15:B26) -> 12 | B26: =IF('Đầu vào Dữ liệu Tài chính'!B17=0,"",'Đầu vào Dữ liệu Tài chính'!B17) -> CHỈ SỐ 4 | C26: =IF(B26="",NA(),IFERROR(INDEX('Đầu vào Dữ liệu Tài chính'!$B$6:$I$30,$A26,C$6),NA())) -> 352520 | D26: =IF(B26="",NA(),IFERROR(INDEX('Đầu vào Dữ liệu Tài chính'!$B$6:$I$30,$A26,D$6),NA())) -> 383600 | E26: =IF(B26="",NA(),IFERROR(INDEX('Đầu vào Dữ liệu Tài chính'!$B$6:$I$30,$A26,E$6),NA())) -> 385280 | F26: =IF(B26="",NA(),IFERROR(INDEX('Đầu vào Dữ liệu Tài chính'!$B$6:$I$30,$A26,F$6),NA())) -> 408520 | G26: =IF(B26="",NA(),IFERROR(INDEX('Đầu vào Dữ liệu Tài chính'!$B$6:$I$30,$A26,G$6),NA())) -> 417760
A27: =ROWS($B$15:B27) -> 13 | B27: =IF('Đầu vào Dữ liệu Tài chính'!B18=0,"",'Đầu vào Dữ liệu Tài chính'!B18) -> CHỈ SỐ 5 | C27: =IF(B27="",NA(),IFERROR(INDEX('Đầu vào Dữ liệu Tài chính'!$B$6:$I$30,$A27,C$6),NA())) -> 23800 | D27: =IF(B27="",NA(),IFERROR(INDEX('Đầu vào Dữ liệu Tài chính'!$B$6:$I$30,$A27,D$6),NA())) -> 24920 | E27: =IF(B27="",NA(),IFERROR(INDEX('Đầu vào Dữ liệu Tài chính'!$B$6:$I$30,$A27,E$6),NA())) -> 25480 | F27: =IF(B27="",NA(),IFERROR(INDEX('Đầu vào Dữ liệu Tài chính'!$B$6:$I$30,$A27,F$6),NA())) -> 28000 | G27: =IF(B27="",NA(),IFERROR(INDEX('Đầu vào Dữ liệu Tài chính'!$B$6:$I$30,$A27,G$6),NA())) -> 28840
A28: =ROWS($B$15:B28) -> 14 | B28: =IF('Đầu vào Dữ liệu Tài chính'!B19=0,"",'Đầu vào Dữ liệu Tài chính'!B19) -> CHỈ SỐ 6 | C28: =IF(B28="",NA(),IFERROR(INDEX('Đầu vào Dữ liệu Tài chính'!$B$6:$I$30,$A28,C$6),NA())) -> 7560 | D28: =IF(B28="",NA(),IFERROR(INDEX('Đầu vào Dữ liệu Tài chính'!$B$6:$I$30,$A28,D$6),NA())) -> 7840 | E28: =IF(B28="",NA(),IFERROR(INDEX('Đầu vào Dữ liệu Tài chính'!$B$6:$I$30,$A28,E$6),NA())) -> 8120 | F28: =IF(B28="",NA(),IFERROR(INDEX('Đầu vào Dữ liệu Tài chính'!$B$6:$I$30,$A28,F$6),NA())) -> 8400 | G28: =IF(B28="",NA(),IFERROR(INDEX('Đầu vào Dữ liệu Tài chính'!$B$6:$I$30,$A28,G$6),NA())) -> 9520
A29: =ROWS($B$15:B29) -> 15 | B29: =IF('Đầu vào Dữ liệu Tài chính'!B20=0,"",'Đầu vào Dữ liệu Tài chính'!B20) ->  | C29: =IF(B29="",NA(),IFERROR(INDEX('Đầu vào Dữ liệu Tài chính'!$B$6:$I$30,$A29,C$6),NA())) ->  | D29: =IF(B29="",NA(),IFERROR(INDEX('Đầu vào Dữ liệu Tài chính'!$B$6:$I$30,$A29,D$6),NA())) ->  | E29: =IF(B29="",NA(),IFERROR(INDEX('Đầu vào Dữ liệu Tài chính'!$B$6:$I$30,$A29,E$6),NA())) ->  | F29: =IF(B29="",NA(),IFERROR(INDEX('Đầu vào Dữ liệu Tài chính'!$B$6:$I$30,$A29,F$6),NA())) ->  | G29: =IF(B29="",NA(),IFERROR(INDEX('Đầu vào Dữ liệu Tài chính'!$B$6:$I$30,$A29,G$6),NA())) -> 
A30: =ROWS($B$15:B30) -> 16 | B30: =IF('Đầu vào Dữ liệu Tài chính'!B21=0,"",'Đầu vào Dữ liệu Tài chính'!B21) ->  | C30: =IF(B30="",NA(),IFERROR(INDEX('Đầu vào Dữ liệu Tài chính'!$B$6:$I$30,$A30,C$6),NA())) ->  | D30: =IF(B30="",NA(),IFERROR(INDEX('Đầu vào Dữ liệu Tài chính'!$B$6:$I$30,$A30,D$6),NA())) ->  | E30: =IF(B30="",NA(),IFERROR(INDEX('Đầu vào Dữ liệu Tài chính'!$B$6:$I$30,$A30,E$6),NA())) ->  | F30: =IF(B30="",NA(),IFERROR(INDEX('Đầu vào Dữ liệu Tài chính'!$B$6:$I$30,$A30,F$6),NA())) ->  | G30: =IF(B30="",NA(),IFERROR(INDEX('Đầu vào Dữ liệu Tài chính'!$B$6:$I$30,$A30,G$6),NA())) -> 
A31: =ROWS($B$15:B31) -> 17 | B31: =IF('Đầu vào Dữ liệu Tài chính'!B22=0,"",'Đầu vào Dữ liệu Tài chính'!B22) ->  | C31: =IF(B31="",NA(),IFERROR(INDEX('Đầu vào Dữ liệu Tài chính'!$B$6:$I$30,$A31,C$6),NA())) ->  | D31: =IF(B31="",NA(),IFERROR(INDEX('Đầu vào Dữ liệu Tài chính'!$B$6:$I$30,$A31,D$6),NA())) ->  | E31: =IF(B31="",NA(),IFERROR(INDEX('Đầu vào Dữ liệu Tài chính'!$B$6:$I$30,$A31,E$6),NA())) ->  | F31: =IF(B31="",NA(),IFERROR(INDEX('Đầu vào Dữ liệu Tài chính'!$B$6:$I$30,$A31,F$6),NA())) ->  | G31: =IF(B31="",NA(),IFERROR(INDEX('Đầu vào Dữ liệu Tài chính'!$B$6:$I$30,$A31,G$6),NA())) -> 
A32: =ROWS($B$15:B32) -> 18 | B32: =IF('Đầu vào Dữ liệu Tài chính'!B23=0,"",'Đầu vào Dữ liệu Tài chính'!B23) ->  | C32: =IF(B32="",NA(),IFERROR(INDEX('Đầu vào Dữ liệu Tài chính'!$B$6:$I$30,$A32,C$6),NA())) ->  | D32: =IF(B32="",NA(),IFERROR(INDEX('Đầu vào Dữ liệu Tài chính'!$B$6:$I$30,$A32,D$6),NA())) ->  | E32: =IF(B32="",NA(),IFERROR(INDEX('Đầu vào Dữ liệu Tài chính'!$B$6:$I$30,$A32,E$6),NA())) ->  | F32: =IF(B32="",NA(),IFERROR(INDEX('Đầu vào Dữ liệu Tài chính'!$B$6:$I$30,$A32,F$6),NA())) ->  | G32: =IF(B32="",NA(),IFERROR(INDEX('Đầu vào Dữ liệu Tài chính'!$B$6:$I$30,$A32,G$6),NA())) -> 
A33: =ROWS($B$15:B33) -> 19 | B33: =IF('Đầu vào Dữ liệu Tài chính'!B24=0,"",'Đầu vào Dữ liệu Tài chính'!B24) ->  | C33: =IF(B33="",NA(),IFERROR(INDEX('Đầu vào Dữ liệu Tài chính'!$B$6:$I$30,$A33,C$6),NA())) ->  | D33: =IF(B33="",NA(),IFERROR(INDEX('Đầu vào Dữ liệu Tài chính'!$B$6:$I$30,$A33,D$6),NA())) ->  | E33: =IF(B33="",NA(),IFERROR(INDEX('Đầu vào Dữ liệu Tài chính'!$B$6:$I$30,$A33,E$6),NA())) ->  | F33: =IF(B33="",NA(),IFERROR(INDEX('Đầu vào Dữ liệu Tài chính'!$B$6:$I$30,$A33,F$6),NA())) ->  | G33: =IF(B33="",NA(),IFERROR(INDEX('Đầu vào Dữ liệu Tài chính'!$B$6:$I$30,$A33,G$6),NA())) -> 
A34: =ROWS($B$15:B34) -> 20 | B34: =IF('Đầu vào Dữ liệu Tài chính'!B25=0,"",'Đầu vào Dữ liệu Tài chính'!B25) ->  | C34: =IF(B34="",NA(),IFERROR(INDEX('Đầu vào Dữ liệu Tài chính'!$B$6:$I$30,$A34,C$6),NA())) ->  | D34: =IF(B34="",NA(),IFERROR(INDEX('Đầu vào Dữ liệu Tài chính'!$B$6:$I$30,$A34,D$6),NA())) ->  | E34: =IF(B34="",NA(),IFERROR(INDEX('Đầu vào Dữ liệu Tài chính'!$B$6:$I$30,$A34,E$6),NA())) ->  | F34: =IF(B34="",NA(),IFERROR(INDEX('Đầu vào Dữ liệu Tài chính'!$B$6:$I$30,$A34,F$6),NA())) ->  | G34: =IF(B34="",NA(),IFERROR(INDEX('Đầu vào Dữ liệu Tài chính'!$B$6:$I$30,$A34,G$6),NA())) -> 
A35: =ROWS($B$15:B35) -> 21 | B35: =IF('Đầu vào Dữ liệu Tài chính'!B26=0,"",'Đầu vào Dữ liệu Tài chính'!B26) ->  | C35: =IF(B35="",NA(),IFERROR(INDEX('Đầu vào Dữ liệu Tài chính'!$B$6:$I$30,$A35,C$6),NA())) ->  | D35: =IF(B35="",NA(),IFERROR(INDEX('Đầu vào Dữ liệu Tài chính'!$B$6:$I$30,$A35,D$6),NA())) ->  | E35: =IF(B35="",NA(),IFERROR(INDEX('Đầu vào Dữ liệu Tài chính'!$B$6:$I$30,$A35,E$6),NA())) ->  | F35: =IF(B35="",NA(),IFERROR(INDEX('Đầu vào Dữ liệu Tài chính'!$B$6:$I$30,$A35,F$6),NA())) ->  | G35: =IF(B35="",NA(),IFERROR(INDEX('Đầu vào Dữ liệu Tài chính'!$B$6:$I$30,$A35,G$6),NA())) -> 
A36: =ROWS($B$15:B36) -> 22 | B36: =IF('Đầu vào Dữ liệu Tài chính'!B27=0,"",'Đầu vào Dữ liệu Tài chính'!B27) ->  | C36: =IF(B36="",NA(),IFERROR(INDEX('Đầu vào Dữ liệu Tài chính'!$B$6:$I$30,$A36,C$6),NA())) ->  | D36: =IF(B36="",NA(),IFERROR(INDEX('Đầu vào Dữ liệu Tài chính'!$B$6:$I$30,$A36,D$6),NA())) ->  | E36: =IF(B36="",NA(),IFERROR(INDEX('Đầu vào Dữ liệu Tài chính'!$B$6:$I$30,$A36,E$6),NA())) ->  | F36: =IF(B36="",NA(),IFERROR(INDEX('Đầu vào Dữ liệu Tài chính'!$B$6:$I$30,$A36,F$6),NA())) ->  | G36: =IF(B36="",NA(),IFERROR(INDEX('Đầu vào Dữ liệu Tài chính'!$B$6:$I$30,$A36,G$6),NA())) -> 
A37: =ROWS($B$15:B37) -> 23 | B37: =IF('Đầu vào Dữ liệu Tài chính'!B28=0,"",'Đầu vào Dữ liệu Tài chính'!B28) ->  | C37: =IF(B37="",NA(),IFERROR(INDEX('Đầu vào Dữ liệu Tài chính'!$B$6:$I$30,$A37,C$6),NA())) ->  | D37: =IF(B37="",NA(),IFERROR(INDEX('Đầu vào Dữ liệu Tài chính'!$B$6:$I$30,$A37,D$6),NA())) ->  | E37: =IF(B37="",NA(),IFERROR(INDEX('Đầu vào Dữ liệu Tài chính'!$B$6:$I$30,$A37,E$6),NA())) ->  | F37: =IF(B37="",NA(),IFERROR(INDEX('Đầu vào Dữ liệu Tài chính'!$B$6:$I$30,$A37,F$6),NA())) ->  | G37: =IF(B37="",NA(),IFERROR(INDEX('Đầu vào Dữ liệu Tài chính'!$B$6:$I$30,$A37,G$6),NA())) -> 
A38: =ROWS($B$15:B38) -> 24 | B38: =IF('Đầu vào Dữ liệu Tài chính'!B29=0,"",'Đầu vào Dữ liệu Tài chính'!B29) ->  | C38: =IF(B38="",NA(),IFERROR(INDEX('Đầu vào Dữ liệu Tài chính'!$B$6:$I$30,$A38,C$6),NA())) ->  | D38: =IF(B38="",NA(),IFERROR(INDEX('Đầu vào Dữ liệu Tài chính'!$B$6:$I$30,$A38,D$6),NA())) ->  | E38: =IF(B38="",NA(),IFERROR(INDEX('Đầu vào Dữ liệu Tài chính'!$B$6:$I$30,$A38,E$6),NA())) ->  | F38: =IF(B38="",NA(),IFERROR(INDEX('Đầu vào Dữ liệu Tài chính'!$B$6:$I$30,$A38,F$6),NA())) ->  | G38: =IF(B38="",NA(),IFERROR(INDEX('Đầu vào Dữ liệu Tài chính'!$B$6:$I$30,$A38,G$6),NA())) -> 
A39: =ROWS($B$15:B39) -> 25 | B39: =IF('Đầu vào Dữ liệu Tài chính'!B30=0,"",'Đầu vào Dữ liệu Tài chính'!B30) ->  | C39: =IF(B39="",NA(),IFERROR(INDEX('Đầu vào Dữ liệu Tài chính'!$B$6:$I$30,$A39,C$6),NA())) ->  | D39: =IF(B39="",NA(),IFERROR(INDEX('Đầu vào Dữ liệu Tài chính'!$B$6:$I$30,$A39,D$6),NA())) ->  | E39: =IF(B39="",NA(),IFERROR(INDEX('Đầu vào Dữ liệu Tài chính'!$B$6:$I$30,$A39,E$6),NA())) ->  | F39: =IF(B39="",NA(),IFERROR(INDEX('Đầu vào Dữ liệu Tài chính'!$B$6:$I$30,$A39,F$6),NA())) ->  | G39: =IF(B39="",NA(),IFERROR(INDEX('Đầu vào Dữ liệu Tài chính'!$B$6:$I$30,$A39,G$6),NA())) -> 
